bitfinex/quotes_BTCUSD_20250618
["timestamp","ask_amount","ask_price","bid_price","bid_amount"]
[1750279255562,0.98087104,104670.0,104660.0,0.45882723]
[1750279255984,0.37925692,104670.0,104660.0,0.45882659]
[1750279256200,0.38880993,104670.0,104660.0,0.52352659]
[1750279256426,0.37925692,104670.0,104660.0,0.61976835]
[1750279257321,0.03925692,104670.0,104660.0,0.61976835]
[1750279257771,0.38428612,104680.0,104670.0,0.21973711]
[1750279257982,0.39321745,104680.0,104670.0,0.21973711]
[1750279258197,0.37411253,104680.0,104670.0,0.37897887]
[1750279258412,0.36518129,104680.0,104670.0,0.37897887]
[1750279258621,0.3651812,104680.0,104670.0,0.37897887]
[1750279259255,0.39383849,104680.0,104670.0,0.37897887]
[1750279259463,0.39383849,104680.0,104670.0,0.34897887]
[1750279259679,0.77633667,104680.0,104670.0,0.3799772]
[1750279259948,0.77633667,104680.0,104670.0,0.38953039]
[1750279260392,0.80660172,104680.0,104670.0,0.38953039]
[1750279260618,0.80660163,104680.0,104670.0,0.38953039]
[1750279260875,0.81615437,104680.0,104670.0,0.38953039]
[1750279262034,1.00721356,104680.0,104670.0,0.38953039]
[1750279262264,0.8161551,104680.0,104670.0,0.38953039]
[1750279262716,0.80660227,104680.0,104670.0,0.38953039]
[1750279262939,0.42410418,104680.0,104670.0,0.38953039]
[1750279263172,0.80598398,104680.0,104670.0,0.38953039]
[1750279263392,0.80660227,104680.0,104670.0,0.38953039]
[1750279263624,0.81553669,104680.0,104670.0,0.38953039]
[1750279264086,0.82508952,104680.0,104670.0,0.22929039]
[1750279264323,1.01614862,104680.0,104670.0,0.38965039]
[1750279264573,0.0286604,104670.0,104660.0,0.32174953]
[1750279264818,0.40499962,104680.0,104670.0,0.21018373]
[1750279265053,0.4330398,104680.0,104670.0,0.21973692]
[1750279265290,0.41455145,104680.0,104670.0,0.28333692]
[1750279265521,0.43365665,104680.0,104670.0,0.28333692]
[1750279265759,0.43365665,104680.0,104670.0,0.25083692]
[1750279265994,0.44320948,104680.0,104670.0,0.21973692]
[1750279266705,0.81615483,104680.0,104670.0,0.21973692]
[1750279266934,0.45214796,104680.0,104670.0,0.21973692]
[1750279267166,0.80598774,104680.0,104670.0,0.28433692]
[1750279267396,0.44259513,104680.0,104670.0,0.28433692]
[1750279267666,0.45214796,104680.0,104670.0,0.25233692]
[1750279267896,0.00955328,104670.0,104660.0,0.46324345]
[1750279268133,0.93268264,104670.0,104660.0,0.31569497]
[1750279268389,0.94223647,104670.0,104660.0,0.27020382]
[1750279268628,0.94223684,104670.0,104660.0,0.44147838]
[1750279268853,0.94223684,104670.0,104660.0,0.45103267]
[1750279269077,0.7416063,104670.0,104660.0,0.46058641]
[1750279269305,0.7416063,104670.0,104660.0,0.46258641]
[1750279269543,0.74160639,104670.0,104660.0,0.46258641]
[1750279269781,0.35910684,104670.0,104660.0,0.52706641]
[1750279270042,0.36866049,104670.0,104660.0,0.52706641]
[1750279270251,0.34,104670.0,104660.0,0.52706641]
[1750279270479,0.34,104670.0,104660.0,0.62330817]
[1750279272339,0.36518129,104680.0,104670.0,0.21973711]
[1750279272588,0.36518129,104680.0,104670.0,0.28113711]
[1750279272589,0.38368184,104680.0,104670.0,0.28113711]
[1750279272813,0.9572388,104680.0,104670.0,0.20063045]
[1750279273033,0.94768643,104680.0,104670.0,0.36259054]
[1750279273248,0.96558745,104680.0,104670.0,0.37214419]
[1750279273469,0.60995835,104680.0,104670.0,0.37214419]
[1750279274366,0.60995835,104680.0,104670.0,0.36259054]
[1750279274585,0.60995976,104680.0,104670.0,0.37214428]
[1750279275026,0.27675653,104680.0,104670.0,0.37214428]
[1750279275316,0.64970188,104680.0,104670.0,0.38169793]
[1750279275526,0.64014933,104680.0,104670.0,0.38169793]
[1750279276315,0.64014933,104680.0,104670.0,0.39125149]
[1750279276971,0.64014933,104680.0,104670.0,0.38169793]
[1750279277191,0.63060162,104680.0,104670.0,0.38169793]
[1750279277423,0.97060571,104680.0,104670.0,0.38169793]
[1750279279030,0.97060571,104680.0,104670.0,0.37214428]
[1750279279265,0.97060571,104680.0,104670.0,0.35303671]
[1750279280368,0.97061691,104680.0,104670.0,0.35303671]
[1750279280606,0.54063027,104670.0,104660.0,0.20064962]
[1750279280830,0.9404466,104670.0,104660.0,0.37212418]
[1750279281054,0.9404466,104670.0,104660.0,0.38167865]
[1750279281532,0.95955381,104670.0,104660.0,0.39123303]
[1750279281753,0.02806402,104670.0,104660.0,0.52448713]
[1750279281969,0.37761767,104670.0,104660.0,0.52548713]
[1750279282186,0.37761767,104670.0,104660.0,0.52648713]
[1750279282910,0.03761767,104670.0,104660.0,0.52648713]
[1750279283102,0.37761767,104670.0,104660.0,0.52648713]
[1750279283751,0.36806374,104670.0,104660.0,0.52648713]
[1750279284619,0.36806328,104670.0,104660.0,0.62272889]
[1750279285551,0.36806319,104670.0,104660.0,0.62272889]
[1750279285774,0.36806353,104670.0,104660.0,0.62272889]
[1750279286563,0.36806353,104670.0,104660.0,0.52648713]
[1750279286777,0.3776169,104670.0,104660.0,0.52648713]
[1750279288151,0.38717055,104670.0,104660.0,0.52668713]
[1750279288358,0.3776169,104670.0,104660.0,0.52668713]
[1750279288516,0.38717046,104670.0,104660.0,0.52668713]
[1750279288724,0.37761648,104670.0,104660.0,0.52668713]
[1750279288932,0.38717004,104670.0,104660.0,0.52668713]
[1750279289949,0.38716995,104670.0,104660.0,0.52668713]
[1750279290559,0.3967236,104670.0,104660.0,0.52668713]
[1750279291326,0.3967236,104670.0,104660.0,0.52652713]
[1750279291737,0.38716995,104670.0,104660.0,0.52652713]
[1750279291934,0.3967236,104670.0,104660.0,0.52652713]
[1750279292143,0.38716995,104670.0,104660.0,0.52652713]
[1750279292388,0.3967236,104670.0,104660.0,0.52652713]
[1750279292855,1.04553162,104670.0,104660.0,0.062]
[1750279293079,1.1074717,104670.0,104660.0,0.062]
[1750279293299,1.2768306,104670.0,104660.0,0.062]
[1750279293522,1.3055446,104670.0,104660.0,0.062]
[1750279293747,1.3055446,104670.0,104660.0,0.061]
[1750279293963,1.2988257,104670.0,104660.0,0.06]
[1750279295983,1.2971857,104670.0,104660.0,0.06]
[1750279296393,0.92424035,104670.0,104660.0,0.06]
[1750279296577,1.2971857,104670.0,104660.0,0.06]
[1750279296993,1.2971677,104670.0,104660.0,0.06]
[1750279298310,0.20064953,104660.0,104650.0,0.21022389]
[1750279298521,0.58254594,104660.0,104650.0,0.27372389]
[1750279299989,0.58254594,104660.0,104650.0,0.33372389]
[1750279300186,0.57359488,104660.0,104650.0,0.33372389]
[1750279300617,0.57359488,104660.0,104650.0,0.34327936]
[1750279301078,0.03821705,104660.0,104650.0,0.44164326]
[1750279301292,0.23886667,104660.0,104650.0,0.36498921]
[1750279301510,0.62107947,104660.0,104650.0,0.34587908]
[1750279301733,0.62107947,104660.0,104650.0,0.35543437]
[1750279301959,0.63063421,104660.0,104650.0,0.36498957]
[1750279302205,0.25768886,104660.0,104650.0,0.36498957]
[1750279302415,0.63063421,104660.0,104650.0,0.36498957]
[1750279302627,0.62107983,104660.0,104650.0,0.36498957]
[1750279303692,0.42043012,104660.0,104650.0,0.36698866]
[1750279303903,0.42042976,104660.0,104650.0,0.36698866]
[1750279304113,0.04748441,104660.0,104650.0,0.36698866]
[1750279305203,0.24813412,104660.0,104650.0,0.36698866]
[1750279306101,0.24813412,104660.0,104650.0,0.35743364]
[1750279306545,0.24813412,104660.0,104650.0,0.34787853]
[1750279306753,0.24813412,104660.0,104650.0,0.50176333]
[1750279307809,0.24813412,104660.0,104650.0,0.51131853]
[1750279308027,0.62107947,104660.0,104650.0,0.51131853]
[1750279308244,0.63002683,104660.0,104650.0,0.51131853]
[1750279308465,0.05643177,104660.0,104650.0,0.52087355]
[1750279309310,0.05643485,104660.0,104650.0,0.52087355]
[1750279309960,0.0659895,104660.0,104650.0,0.52087355]
[1750279310388,0.25708447,104660.0,104650.0,0.51131853]
[1750279310601,0.25708447,104660.0,104650.0,0.52087364]
[1750279311196,0.25708447,104660.0,104650.0,0.53042866]
[1750279312666,0.0659895,104660.0,104650.0,0.53042866]
[1750279312882,0.05643485,104660.0,104650.0,0.53042866]
[1750279313348,0.06598886,104660.0,104650.0,0.53042866]
[1750279313802,0.0376133,104660.0,104650.0,0.53042866]
[1750279314405,0.23826292,104660.0,104650.0,0.53042866]
[1750279314621,0.24781766,104660.0,104650.0,0.53042866]
[1750279315430,0.24781766,104660.0,104650.0,0.52087364]
[1750279315668,0.24782185,104660.0,104650.0,0.52087364]
[1750279316331,0.27715151,104660.0,104650.0,0.52087364]
[1750279316564,0.2675975,104660.0,104650.0,0.52087364]
[1750279317209,0.2675975,104660.0,104650.0,0.53042866]
[1750279317210,0.05739259,104660.0,104650.0,0.53042866]
[1750279317435,0.0765034,104660.0,104650.0,0.53042866]
[1750279318451,0.05799234,104660.0,104650.0,0.53042866]
[1750279318658,0.06694884,104660.0,104650.0,0.53042866]
[1750279319724,0.0765034,104660.0,104650.0,0.53042866]
[1750279320141,0.07650331,104660.0,104650.0,0.53042866]
[1750279320357,0.0765034,104660.0,104650.0,0.53042866]
[1750279320799,0.06694884,104660.0,104650.0,0.53042866]
[1750279321225,0.05739446,104660.0,104650.0,0.53042866]
[1750279321450,0.05739731,104660.0,104650.0,0.53042866]
[1750279321716,0.05739722,104660.0,104650.0,0.53042866]
[1750279321932,0.0669516,104660.0,104650.0,0.53042866]
[1750279322145,0.05739722,104660.0,104650.0,0.53042866]
[1750279322356,0.0669516,104660.0,104650.0,0.53042866]
[1750279322567,0.07650607,104660.0,104650.0,0.53042866]
[1750279322796,0.08606063,104660.0,104650.0,0.53042866]
[1750279324017,0.08606553,104660.0,104650.0,0.53042866]
[1750279324248,0.00896425,104660.0,104650.0,0.62667042]
[1750279324469,0.04929422,104680.0,104670.0,0.28013711]
[1750279324694,0.08573431,104680.0,104670.0,0.28013711]
[1750279324925,0.05554465,104680.0,104670.0,0.28013711]
[1750279325138,0.03761944,104680.0,104670.0,0.28013711]
[1750279325400,0.37761944,104680.0,104670.0,0.28013711]
[1750279325619,0.0089626,104680.0,104670.0,0.44753711]
[1750279325835,0.41849146,104690.0,104680.0,0.28171612]
[1750279326054,0.44840978,104690.0,104680.0,0.28171612]
[1750279326273,0.39938809,104690.0,104680.0,0.28171612]
[1750279326499,0.37646945,104690.0,104680.0,0.28171612]
[1750279326746,0.02690643,104690.0,104680.0,0.28171612]
[1750279326965,0.00900214,104690.0,104680.0,0.28171612]
[1750279327182,0.34005,104690.0,104680.0,0.28171612]
[1750279327401,0.34900214,104690.0,104680.0,0.28171612]
[1750279328044,0.34960118,104690.0,104680.0,0.28171612]
[1750279328263,0.35915264,104690.0,104680.0,0.28171612]
[1750279328485,0.34960118,104690.0,104680.0,0.28171612]
[1750279328697,0.35915255,104690.0,104680.0,0.28171612]
[1750279328907,0.34960118,104690.0,104680.0,0.28171612]
[1750279329176,0.35915255,104690.0,104680.0,0.28171612]
[1750279329393,0.35915246,104690.0,104680.0,0.28171612]
[1750279330024,0.34960118,104690.0,104680.0,0.28171612]
[1750279330241,0.35915255,104690.0,104680.0,0.28171612]
[1750279330485,0.35915246,104690.0,104680.0,0.28171612]
[1750279331163,0.94224213,104690.0,104680.0,0.29296886]
[1750279332270,0.94224213,104690.0,104680.0,0.29296904]
[1750279332714,0.93269085,104690.0,104680.0,0.28341658]
[1750279333651,0.9231393,104690.0,104680.0,0.27386403]
[1750279333866,0.91358757,104690.0,104680.0,0.26431129]
[1750279334083,0.92251792,104690.0,104680.0,0.26431129]
[1750279334567,0.92251792,104690.0,104680.0,0.28341658]
[1750279335008,0.92251648,104690.0,104680.0,0.28341658]
[1750279335460,0.91358757,104690.0,104680.0,0.28341658]
[1750279335691,0.54957111,104690.0,104680.0,0.27386403]
[1750279335912,0.91358757,104690.0,104680.0,0.27386403]
[1750279336140,0.91296385,104690.0,104680.0,0.27386403]
[1750279336991,0.90403556,104690.0,104680.0,0.27386403]
[1750279337241,0.56398556,104690.0,104680.0,0.27386403]
[1750279339066,0.00955274,104680.0,104670.0,0.00955374]
[1750279339298,0.73996498,104680.0,104670.0,0.0623]
[1750279339510,0.21018328,104670.0,104660.0,0.27250364]
[1750279339720,0.58312936,104670.0,104660.0,0.26294971]
[1750279339932,0.5735758,104670.0,104650.0,0.67361966]
[1750279340144,0.5735758,104670.0,104650.0,0.7454745]
[1750279340371,0.5735758,104670.0,104660.0,0.25339497]
[1750279340636,0.5735758,104670.0,104660.0,0.26294971]
[1750279340862,0.5735758,104670.0,104660.0,0.27250436]
[1750279341106,0.5735758,104670.0,104660.0,0.28205883]
[1750279341311,0.5735758,104670.0,104660.0,0.29161321]
[1750279341520,0.5735758,104670.0,104660.0,0.3011675]
[1750279341727,0.39205256,104670.0,104660.0,0.30116686]
[1750279341961,0.01910721,104670.0,104660.0,0.30216686]
[1750279342383,0.34955347,104670.0,104660.0,0.30216686]
[1750279342633,0.53486031,104670.0,104660.0,0.30316686]
[1750279343302,0.54441405,104670.0,104660.0,0.30316686]
[1750279343511,0.74504459,104670.0,104660.0,0.30316686]
[1750279343746,0.7354914,104670.0,104660.0,0.29361276]
[1750279343969,0.7354914,104670.0,104660.0,0.27450409]
[1750279344190,0.72593793,104670.0,104660.0,0.25539497]
[1750279344457,0.72593793,104670.0,104660.0,0.26494971]
[1750279344458,1.08932963,104670.0,104660.0,0.26494971]
[1750279344678,1.07977589,104670.0,104660.0,0.0643]
[1750279344891,1.07977589,104670.0,104660.0,0.26494962]
[1750279345106,1.10848789,104670.0,104660.0,0.27450418]
[1750279345329,1.07977562,104670.0,104660.0,0.27450418]
[1750279345554,0.72593729,104670.0,104660.0,0.30316695]
[1750279345786,0.73549112,104670.0,104660.0,0.29361285]
[1750279345996,0.73549112,104670.0,104660.0,0.29361303]
[1750279346582,0.72593784,104670.0,104660.0,0.28405865]
[1750279346831,0.91357589,104670.0,104660.0,0.25539497]
[1750279347015,1.07933589,104670.0,104660.0,0.26494971]
[1750279347228,1.07933589,104670.0,104660.0,0.27450436]
[1750279347435,1.07933589,104670.0,104660.0,0.28405892]
[1750279347859,0.73933589,104670.0,104660.0,0.2936133]
[1750279348071,0.73933589,104670.0,104660.0,0.30316759]
[1750279348505,0.73933589,104670.0,104660.0,0.2936133]
[1750279348953,0.03826364,104680.0,104670.0,0.28153756]
[1750279349190,0.01848745,104680.0,104670.0,0.29109075]
[1750279349425,0.72970556,104690.0,104670.0,0.29109075]
[1750279349426,0.77751602,104690.0,104680.0,0.25285846]
[1750279349712,0.78645093,104690.0,104680.0,0.0618]
[1750279349942,0.02865711,104680.0,104670.0,0.28153692]
[1750279350184,0.4111552,104680.0,104670.0,0.28153692]
[1750279350416,0.41115502,104680.0,104670.0,0.28153692]
[1750279350638,0.03820967,104680.0,104670.0,0.28153692]
[1750279350866,0.04714742,104680.0,104670.0,0.28153692]
[1750279351311,0.04714732,104680.0,104670.0,0.28153692]
[1750279351547,0.05670006,104680.0,104670.0,0.28153692]
[1750279352030,0.2477598,104680.0,104670.0,0.27198373]
[1750279352309,0.23820734,104680.0,104670.0,0.27198373]
[1750279352529,0.23820734,104680.0,104670.0,0.28153701]
[1750279353138,0.57820734,104680.0,104670.0,0.2910902]
[1750279353970,0.57820734,104680.0,104670.0,0.25287671]
[1750279354176,0.94160005,104680.0,104670.0,0.25287671]
[1750279354385,0.93204731,104680.0,104670.0,0.27198428]
[1750279354604,0.55910196,104680.0,104670.0,0.28153793]
[1750279354807,0.92310956,104680.0,104670.0,0.28153793]
[1750279355010,0.93205212,104680.0,104670.0,0.28153793]
[1750279355865,0.93205212,104680.0,104670.0,0.27198428]
[1750279356106,0.93205212,104680.0,104670.0,0.28153793]
[1750279356290,0.93205212,104680.0,104670.0,0.29109149]
[1750279356489,0.93205212,104680.0,104670.0,0.30064496]
[1750279356705,0.93205212,104680.0,104670.0,0.30064404]
[1750279356706,0.35849511,104680.0,104670.0,0.30064404]
[1750279356920,0.5332873,104680.0,104670.0,0.30064358]
[1750279357387,0.3680473,104680.0,104670.0,0.30064358]
[1750279357596,0.35849475,104680.0,104670.0,0.30064358]
[1750279357810,0.36804669,104680.0,104670.0,0.30064358]
[1750279358255,0.35849432,104680.0,104670.0,0.30064358]
[1750279358700,0.36804678,104680.0,104670.0,0.30064358]
[1750279359473,0.37759952,104680.0,104670.0,0.30064358]
[1750279359687,0.36804678,104680.0,104670.0,0.30064358]
[1750279360735,0.37759942,104680.0,104670.0,0.30064358]
[1750279361123,0.38715216,104680.0,104670.0,0.30064358]
[1750279361754,0.37759942,104680.0,104670.0,0.30064358]
[1750279361957,0.37759942,104680.0,104670.0,0.36064358]
[1750279362194,0.36804678,104680.0,104670.0,0.36064358]
[1750279362626,0.37759942,104680.0,104670.0,0.36064358]
[1750279364588,0.38716066,104680.0,104670.0,0.36064358]
[1750279365266,0.37760792,104680.0,104670.0,0.36064358]
[1750279365477,0.38716066,104680.0,104670.0,0.36064358]
[1750279366117,0.38576066,104680.0,104670.0,0.36064358]
[1750279367391,0.37620792,104680.0,104670.0,0.36064358]
[1750279367847,0.37620978,104680.0,104670.0,0.36064358]
[1750279368481,0.38576252,104680.0,104670.0,0.36064358]
[1750279369215,0.38576252,104680.0,104670.0,0.35109039]
[1750279369444,0.38576252,104680.0,104670.0,0.36064358]
[1750279369644,0.5863739,104680.0,104670.0,0.36064358]
[1750279369852,0.5863739,104680.0,104670.0,0.35109039]
[1750279370277,0.57682171,104680.0,104670.0,0.34153711]
[1750279372344,0.56726925,104680.0,104670.0,0.3319841]
[1750279372563,0.55771661,104680.0,104670.0,0.3319841]
[1750279372795,0.55771661,104680.0,104670.0,0.34153757]
[1750279373202,0.55771661,104680.0,104670.0,0.35109094]
[1750279374652,0.55771833,104680.0,104670.0,0.35109094]
[1750279376299,0.55771833,104680.0,104670.0,0.3319841]
[1750279376721,0.53921138,104680.0,104670.0,0.3319841]
[1750279376935,0.54816864,104680.0,104670.0,0.3319841]
[1750279377386,0.56609233,104680.0,104670.0,0.3319841]
[1750279377805,0.56609724,104680.0,104670.0,0.3319841]
[1750279378252,0.56609724,104680.0,104670.0,0.34153747]
[1750279378944,0.54817333,104680.0,104670.0,0.34153747]
[1750279379166,0.56609722,104680.0,104670.0,0.34153747]
[1750279379589,0.56609722,104680.0,104670.0,0.3319841]
[1750279380101,0.56609722,104680.0,104670.0,0.34153757]
[1750279381559,0.56609722,104680.0,104670.0,0.36064422]
[1750279382831,0.54817333,104680.0,104670.0,0.36064422]
[1750279383058,0.54817331,104680.0,104670.0,0.36064422]
[1750279383708,0.58904165,104680.0,104670.0,0.34153757]
[1750279384164,0.56609729,104680.0,104670.0,0.35109094]
[1750279384382,0.37503855,104680.0,104670.0,0.36064422]
[1750279384606,0.42664123,104680.0,104670.0,0.36064358]
[1750279385856,0.40871753,104680.0,104670.0,0.36064358]
[1750279386085,0.42664195,104680.0,104670.0,0.36064358]
[1750279386569,0.61770041,104680.0,104670.0,0.36064358]
[1750279386791,0.62725333,104680.0,104670.0,0.36064358]
[1750279387013,0.43619487,104680.0,104670.0,0.36064358]
[1750279387238,0.42664195,104680.0,104670.0,0.36064358]
[1750279387952,0.41708912,104680.0,104670.0,0.36064358]
[1750279388394,0.40753638,104680.0,104670.0,0.36064358]
[1750279388834,0.41709347,104680.0,104670.0,0.36064358]
[1750279389149,0.42664611,104680.0,104670.0,0.36064358]
[1750279389354,0.43619885,104680.0,104670.0,0.36064358]
[1750279389574,0.62725804,104680.0,104670.0,0.36064358]
[1750279390004,0.62725859,104680.0,104670.0,0.36064358]
[1750279390403,0.62725859,104680.0,104670.0,0.35109039]
[1750279391057,0.62725859,104680.0,104670.0,0.36064358]
[1750279391264,0.62725834,104680.0,104670.0,0.36064358]
[1750279391515,0.6272582,104680.0,104670.0,0.36064358]
[1750279391934,0.61770565,104680.0,104670.0,0.35109039]
[1750279392368,0.61770487,104680.0,104670.0,0.36064358]
[1750279393496,0.42664641,104680.0,104670.0,0.36064358]
[1750279394243,0.39975587,104680.0,104670.0,0.36064358]
[1750279394471,0.4266461,104680.0,104670.0,0.36064358]
[1750279394822,0.61770456,104680.0,104670.0,0.36064358]
[1750279395591,0.61770456,104680.0,104670.0,0.35109039]
[1750279396011,0.61770455,104680.0,104670.0,0.35109039]
[1750279397177,0.61770454,104680.0,104670.0,0.34153711]
[1750279397975,0.61770454,104680.0,104670.0,0.35109039]
[1750279399044,0.61770454,104680.0,104670.0,0.34153711]
[1750279399937,0.61770458,104680.0,104670.0,0.34153711]
[1750279400411,0.40753946,104680.0,104670.0,0.3510903]
[1750279400756,0.4037001,104680.0,104670.0,0.3510903]
[1750279400996,0.00896344,104680.0,104670.0,0.3510903]
[1750279401231,0.00896344,104690.0,104680.0,0.21971612]
[1750279401473,0.62341452,104700.0,104690.0,0.28579541]
[1750279401731,0.13703551,104700.0,104690.0,0.29534678]
[1750279401981,0.42538533,104700.0,104690.0,0.29534678]
[1750279402209,0.45787942,104700.0,104690.0,0.29534678]
[1750279402458,0.45787933,104700.0,104690.0,0.29534678]
[1750279402669,0.46742052,104700.0,104690.0,0.29534678]
[1750279402917,0.66799348,104700.0,104690.0,0.29534678]
[1750279403181,0.42921761,104700.0,104690.0,0.29534678]
[1750279403441,0.39937164,104700.0,104690.0,0.29534678]
[1750279403664,0.41847283,104700.0,104690.0,0.29534678]
[1750279404108,0.41847292,104700.0,104690.0,0.29534678]
[1750279404342,0.40892219,104700.0,104690.0,0.29534678]
[1750279404576,0.40508074,104700.0,104690.0,0.29534678]
[1750279404794,0.42799372,104700.0,104690.0,0.29534678]
[1750279405019,0.39552983,104700.0,104690.0,0.29534678]
[1750279405243,0.37760545,104700.0,104690.0,0.29534678]
[1750279405479,0.37760075,104700.0,104690.0,0.29534678]
[1750279405723,0.38715166,104700.0,104690.0,0.29534678]
[1750279405944,0.38715166,104700.0,104690.0,0.29734678]
[1750279406575,0.39670266,104700.0,104690.0,0.29734678]
[1750279407663,0.37760075,104700.0,104690.0,0.29734678]
[1750279407875,0.37759771,104700.0,104690.0,0.29734678]
[1750279408747,0.38714862,104700.0,104690.0,0.29734678]
[1750279409373,0.37759771,104700.0,104690.0,0.29734678]
[1750279409572,0.38714862,104700.0,104690.0,0.29734678]
[1750279409785,0.37759771,104700.0,104690.0,0.29734678]
[1750279409960,0.36804698,104700.0,104690.0,0.29734678]
[1750279410165,0.35849643,104700.0,104690.0,0.29734678]
[1750279410369,0.34894607,104700.0,104690.0,0.29734678]
[1750279410574,0.35849634,104700.0,104690.0,0.29734678]
[1750279410770,0.34894607,104700.0,104690.0,0.29734678]
[1750279411140,0.34894115,104700.0,104690.0,0.29734678]
[1750279411791,0.36804206,104700.0,104690.0,0.29734678]
[1750279412009,0.37759288,104700.0,104690.0,0.29734678]
[1750279412237,0.36804206,104700.0,104690.0,0.29734678]
[1750279412866,0.35849151,104700.0,104690.0,0.29734678]
[1750279413079,0.36804206,104700.0,104690.0,0.29734678]
[1750279413886,0.35849151,104700.0,104690.0,0.29734678]
[1750279414110,0.36804206,104700.0,104690.0,0.29734678]
[1750279414575,0.09325877,104730.0,104710.0,0.27470326]
[1750279414817,0.34954863,104720.0,104710.0,0.45736262]
[1750279415029,0.34954854,104720.0,104710.0,0.45736262]
[1750279415240,0.35909717,104720.0,104710.0,0.45736262]
[1750279415457,0.37819507,104720.0,104710.0,0.43826354]
[1750279415725,0.80004475,104720.0,104710.0,0.44781354]
[1750279415957,0.80004475,104720.0,104710.0,0.46691271]
[1750279415958,0.79049566,104720.0,104710.0,0.46691271]
[1750279416393,0.11975269,104740.0,104730.0,0.26511551]
[1750279416606,0.3686993,104740.0,104730.0,0.29375931]
[1750279417054,0.00128844,104740.0,104730.0,0.29375931]
[1750279417260,0.00128844,104740.0,104730.0,0.55336107]
[1750279417479,0.00128844,104740.0,104730.0,0.97102642]
[1750279418465,0.00128844,104740.0,104730.0,0.61262192]
[1750279418697,0.00128844,104740.0,104730.0,0.98556727]
[1750279418943,0.00128844,104740.0,104730.0,0.39200107]
[1750279419191,0.00128844,104740.0,104730.0,0.55736107]
[1750279419418,0.00128844,104740.0,104730.0,0.39700107]
[1750279419661,0.00128844,104740.0,104730.0,0.56340107]
[1750279419900,0.00128844,104740.0,104730.0,0.93434642]
[1750279420128,0.00128844,104740.0,104730.0,0.93934642]
[1750279420569,0.00128844,104740.0,104730.0,0.95388727]
[1750279421432,0.00128844,104740.0,104730.0,0.98286049]
[1750279421669,0.00128844,104740.0,104730.0,0.60027514]
[1750279421897,0.00128844,104740.0,104730.0,0.98322049]
[1750279422359,0.00128844,104740.0,104730.0,0.44151514]
[1750279422581,0.00128844,104740.0,104730.0,0.98050049]
[1750279422805,0.00128844,104740.0,104730.0,0.61255514]
[1750279423045,0.00128844,104740.0,104730.0,0.40300107]
[1750279423511,0.02038197,104740.0,104730.0,0.30675931]
[1750279423805,0.92427742,104740.0,104730.0,0.013]
[1750279424037,0.55133207,104740.0,104730.0,0.23261168]
[1750279424290,0.92427742,104740.0,104730.0,0.25170739]
[1750279424524,0.73332841,104740.0,104730.0,0.30670739]
[1750279424743,0.92427742,104740.0,104730.0,0.29015958]
[1750279425009,0.92427742,104740.0,104730.0,0.29315958]
[1750279425227,0.92427742,104740.0,104730.0,0.29815958]
[1750279425449,0.93382432,104740.0,104730.0,0.29970739]
[1750279425675,0.93382432,104740.0,104730.0,0.29015958]
[1750279426831,0.00128844,104740.0,104730.0,0.90734846]
[1750279427526,0.00128844,104740.0,104730.0,0.53440311]
[1750279427986,0.00128844,104740.0,104730.0,0.53540311]
[1750279428224,0.00128844,104740.0,104730.0,0.53640311]
[1750279428457,0.00128844,104740.0,104730.0,0.62674906]
[1750279429427,0.00128844,104740.0,104730.0,0.62666906]
[1750279430328,0.00128844,104740.0,104730.0,0.45974906]
[1750279430552,0.01083507,104740.0,104730.0,0.62666906]
[1750279430780,0.00128844,104740.0,104730.0,0.62666906]
[1750279434001,0.00016844,104740.0,104730.0,0.62666906]
[1750279434443,0.4347478,104760.0,104750.0,0.21956929]
[1750279434855,0.42520227,104760.0,104750.0,0.21956929]
[1750279435654,0.36897628,104760.0,104750.0,0.21956929]
[1750279435891,0.3785227,104760.0,104750.0,0.28126929]
[1750279436124,0.38806805,104760.0,104750.0,0.28126929]
[1750279436349,0.38806805,104760.0,104750.0,0.25016929]
[1750279436577,0.04806805,104760.0,104750.0,0.25016929]
[1750279436795,0.05761349,104760.0,104750.0,0.25016929]
[1750279437019,0.0391804,104760.0,104750.0,0.21956929]
[1750279437231,0.04807069,104760.0,104750.0,0.21956929]
[1750279437883,0.05761613,104760.0,104750.0,0.21956929]
[1750279438534,0.04807069,104760.0,104750.0,0.28126929]
[1750279438750,0.0480753,104760.0,104750.0,0.28126929]
[1750279439048,0.05762074,104760.0,104750.0,0.28126929]
[1750279439271,0.0480753,104760.0,104750.0,0.25046929]
[1750279439494,0.03852995,104760.0,104750.0,0.21956929]
[1750279439717,0.05633109,104760.0,104750.0,0.21956929]
[1750279440153,0.06587635,104760.0,104750.0,0.21956929]
[1750279440376,0.05633109,104760.0,104750.0,0.21956929]
[1750279440599,0.04678583,104760.0,104750.0,0.28126929]
[1750279440828,0.05633109,104760.0,104750.0,0.28126929]
[1750279441049,0.056331,104760.0,104750.0,0.28126929]
[1750279441272,0.06587617,104760.0,104750.0,0.28126929]
[1750279441731,0.05633091,104760.0,104750.0,0.28126929]
[1750279441944,0.06587617,104760.0,104750.0,0.28126929]
[1750279442162,0.06587626,104760.0,104750.0,0.28126929]
[1750279442865,0.07542179,104760.0,104750.0,0.25046938]
[1750279443093,0.0754217,104760.0,104750.0,0.26001528]
[1750279443532,0.44836705,104760.0,104750.0,0.26001528]
[1750279443976,0.42927681,104760.0,104750.0,0.29201528]
[1750279444238,0.04678611,104760.0,104750.0,0.29201528]
[1750279444458,0.05633137,104760.0,104750.0,0.29201528]
[1750279445304,0.06587681,104760.0,104750.0,0.29201528]
[1750279445784,0.05633137,104760.0,104750.0,0.29201528]
[1750279446002,0.06587681,104760.0,104750.0,0.29301528]
[1750279446698,0.06587681,104760.0,104750.0,0.29401528]
[1750279446909,0.06591378,104760.0,104750.0,0.29401528]
[1750279447128,0.06591369,104760.0,104750.0,0.29401528]
[1750279447343,0.39698182,104760.0,104750.0,0.29401528]
[1750279447568,0.60637511,104760.0,104750.0,0.28446938]
[1750279447781,0.60637565,104760.0,104750.0,0.28446938]
[1750279448238,0.60637565,104760.0,104750.0,0.0329]
[1750279448462,0.95068495,104760.0,104750.0,0.002]
[1750279448687,0.5777396,104760.0,104750.0,0.002]
[1750279448904,0.95068495,104760.0,104750.0,0.002]
[1750279449123,0.95068495,104760.0,104750.0,0.20247731]
[1750279449372,0.94113942,104760.0,104750.0,0.19193078]
[1750279449589,0.90485791,104760.0,104750.0,0.001]
[1750279449812,0.93166394,104760.0,104740.0,0.29012048]
[1750279450029,0.00954626,104750.0,104740.0,0.28057385]
[1750279450258,0.02802795,104750.0,104740.0,0.29012066]
[1750279450493,0.04589864,104750.0,104740.0,0.29012066]
[1750279451356,0.04589828,104750.0,104740.0,0.29012066]
[1750279451573,0.05544463,104750.0,104740.0,0.29012066]
[1750279452291,0.04589828,104750.0,104740.0,0.29112066]
[1750279452292,0.05544463,104750.0,104740.0,0.29112066]
[1750279452530,0.0459091,104750.0,104740.0,0.29112066]
[1750279452747,0.05545536,104750.0,104740.0,0.29112066]
[1750279452972,0.05545536,104750.0,104740.0,0.29212066]
[1750279453859,0.03636275,104750.0,104740.0,0.29212066]
[1750279454086,0.04590874,104750.0,104740.0,0.29212066]
[1750279454531,0.05545482,104750.0,104740.0,0.29212066]
[1750279454869,0.06500108,104750.0,104740.0,0.29212066]